Cogmind - Beta 13 @@@ ROGUE MODE // 2024.04.02 @ 16:28:59 Player: ebo Result: Destroyed by B-36 Bruiser with Hammer Performance ------------- Evolutions (2) 1000 Regions Visited (3) 600 Robots Destroyed (37) 185 Value Destroyed (1172) 1172 Prototype IDs (2) 40 Alien Tech Used (0) 0 Bonus (0) 0 TOTAL SCORE: 2997 Bonus ------- None Cogmind --------- Core Integrity 0/550 Matter 119/300 Energy 100/100 System Corruption 10% Temperature Cool (0) Movement Walking (340) Ox3 Location -8/Materials Parts ------- > --- POWER (1) -------- (None) > --- PROPULSION (3) --- Improved Titanium Leg > --- UTILITY (5) ------ Huge Storage Unit Core Analyzer > --- WEAPON (2) ------- (None) > --- INVENTORY (25) --- Micro Nuclear Core Peak State ------------ > --- POWER ------------ Micro Nuclear Core > --- PROPULSION ------- Light Treads Light Treads Light Treads > --- UTILITY ---------- Large Storage Unit Small Matter Pod Sensor Array Improved Terrain Scanner Medium Armor Plating > --- WEAPON ----------- Heavy Assault Rifle Heavy Assault Rifle > --- INVENTORY -------- Improved Ion Engine Micro Nuclear Core Light Treads Light Treads Improved Titanium Leg Improved Titanium Leg Small Storage Unit Huge Storage Unit Core Analyzer Medium Armor Plating Advanced Beam Cannon Enhanced Autogun Plasma Cutter [Rating: 22] Favorites ----------- Power Ion Engine Engine Ion Engine Power Core Light Nuclear Core Propulsion Light Treads Treads Light Treads Leg Improved Titanium Leg Utility Small Matter Pod Device Seismic Detector Storage Small Matter Pod Processor Core Analyzer Protection Medium Armor Plating Weapon Assault Rifle Energy Gun Particle Gun Energy Cannon Advanced Beam Cannon Ballistic Gun Assault Rifle Special Weapon Plasma Cutter Build | -11 -10 -9 -8 ------- Run | Yrd Mat Mat Mat Slots Evolved 4 | . . 2 2 Power . | . . . . Propulsion 1 | . . 1 . Utility 3 | . . 1 2 Weapon . | . . . . Parts Attached 41 | 6 2 13 20 Power 6 | 1 1 2 2 Engine 4 | 1 . 2 1 Core 2 | . 1 . 1 Reactor . | . . . . Propulsion 11 | 2 . 4 5 Treads 9 | 2 . 4 3 Leg 2 | . . . 2 Wheel . | . . . . Hover . | . . . . Flight . | . . . . Utility 12 | 1 1 3 7 Device 3 | . . 1 2 Storage 6 | 1 1 2 2 Processor 1 | . . . 1 Hackware . | . . . . Protection 2 | . . . 2 Artifact . | . . . . Weapon 12 | 2 . 4 6 Energy Gun 2 | . . 1 1 Energy Cannon 2 | . . 1 1 Ballistic Gun 7 | 2 . 2 3 Ballistic Cannon . | . . . . Launcher . | . . . . Special Weapon 1 | . . . 1 Impact Weapon . | . . . . Slashing Weapon . | . . . . Piercing Weapon . | . . . . Special Melee Weapon . | . . . . Unidentified Prototypes 2 | . . 1 1 Parts Lost 29 | . 1 6 22 Power 6 | . 1 2 3 Propulsion 8 | . . 2 6 Utility 7 | . . . 7 Weapon 8 | . . 2 6 Highest Loss Streak 14 | . 1 2 14 To Critical Strikes 1 | . . . 1 Average Slot Usage (%) 95 | . 98 98 89 Engine 8 | . 11 7 7 Core 2 | . 1 3 . Treads 28 | . 28 32 23 Device 10 | . . 11 15 Storage 21 | . 27 22 17 Protection 2 | . . . 7 Energy Gun 5 | . . 6 4 Ballistic Gun 15 | . 28 14 9 Naked Turns . | . . . . Heaviest Build 85 | 11 14 37 85 Greatest Support 60 | 40 40 60 60 Greatest Overweight (x) 9 | . . . 9 Average Overweight (x) . | . . . . Largest Inventory Capacity 25 | 8 8 25 25 Average Capacity 11 | 7 8 10 15 Most Carried 15 | 5 8 15 15 Average Carried 9 | 2 5 9 12 Final Capacity 25 | 8 8 15 25 Final Carried 14 | 3 7 14 1 Class Distribution -------------------- 83% | Mutant 16% | Scavenger-Mutant Dominant Class ---------------- Mutant | -10/Materials Mutant | -9/Materials Scavenger-Mutant | -8/Materials Resources | -11 -10 -9 -8 ----------- Run | Yrd Mat Mat Mat Matter Collected 850 | 172 221 297 160 Remotely . | . . . . Salvage Created 1410 | . 221 555 634 Parts 100 | . 8 52 40 Haulers Intercepted . | . . . . Recyclers Shooed 2 | . 1 1 . Parts Field Recycled . | . . . . Retrieved Matter . | . . . . Parts Self-Destructed . | . . . . Prevented . | . . . . Kills | -11 -10 -9 -8 ------- Run | Yrd Mat Mat Mat Combat Hostiles Destroyed 34 | . 5 15 14 Guns 32 | . 5 15 12 Cannons 2 | . . . 2 Classes Destroyed 8 | . 1 5 2 Builder 1 | . . . 1 Recycler 1 | . . 1 . Watcher 1 | . . 1 . Swarmer 11 | . . 8 3 Grunt 14 | . 5 1 8 Brawler 1 | . . 1 . Sentry 7 | . . 5 2 Hunter 1 | . . . 1 Best Kill Streak 7 | . 2 4 7 Combat Bots Only 6 | . 2 4 6 Max Kills in Single Turn 2 | . 1 2 1 Gunslinging 1 | . . 1 . Exploded . | . . . . Melee . | . . . . Uniques/NPCs Destroyed . | . . . . Combat | -11 -10 -9 -8 -------- Run | Yrd Mat Mat Mat Hostile Shots Fired 358 | . 32 72 254 Missed 82 | . 9 14 59 Damage Taken 3945 | . 276 728 2941 Core 681 | . 46 72 563 Absorbed by Shields . | . . . . Regen/Repaired (Parts) 84 | . . 84 . Core Remaining (%) 87 | 100 81 82 . Volleys Fired 161 | . 24 60 77 Largest 2 | . 2 2 2 Hottest 93 | . 40 88 93 Shots Fired 267 | . 48 113 106 Gun 250 | . 48 113 89 Cannon 17 | . . . 17 Launcher . | . . . . Special . | . . . . Kinetic 213 | . 48 85 80 Thermal 54 | . . 28 26 Explosive . | . . . . Electromagnetic . | . . . . Robot Hit Streak 14 | . 14 14 14 Robot Miss Streak 4 | . 2 4 4 Penetration Max . | . . . . Secondary Targets 5 | . . 2 3 Max Gunslinging Chain 1 | . . 1 1 Shots Hit Robots 172 | . 37 57 78 Core Hits 69 | . 13 26 30 Critical Kills . | . . . . Critical Parts Destroyed . | . . . . Critical Strikes 3 | . . 2 1 Burn 3 | . . 2 1 Melee Attacks . | . . . . Impact . | . . . . Slashing . | . . . . Piercing . | . . . . Sneak Attacks . | . . . . Combat Hostiles . | . . . . Follow-up Attacks . | . . . . Damage Inflicted 2585 | . 375 834 1376 Guns 2259 | . 375 834 1050 Cannons 326 | . . . 326 Explosions . | . . . . Melee . | . . . . Ramming . | . . . . Kinetic 1813 | . 375 501 937 Thermal 772 | . . 333 439 Explosive . | . . . . Electromagnetic . | . . . . Impact . | . . . . Slashing . | . . . . Piercing . | . . . . Highest Corruption 10 | . . 1 10 Average Corruption 1 | . . 1 5 Corruption Purged . | . . . . Corruption Blocked . | . . . . Effects 2 | . . 1 1 Energy Discharges 1 | . . . 1 Data Loss (minor) 1 | . . 1 . Overload Shots . | . . . . Overflow Damage . | . . . . Projectiles . | . . . . Explosions . | . . . . Melee . | . . . . Knockbacks . | . . . . Impact . | . . . . Kinetic . | . . . . Secondary . | . . . . Self-Inflicted Damage . | . . . . Shots . | . . . . Rammed . | . . . . Targets Rammed . | . . . . Kicked . | . . . . Crushed . | . . . . Highest Temperature 440 | . 21 144 440 Average Temperature 81 | . 6 49 119 Received Heat Transfer 1542 | . 156 141 1245 Effects 7 | . . . 7 Shutdowns 1 | . . . 1 Interference 1 | . . . 1 Short Circuit 1 | . . . 1 Damage (major) 4 | . . . 4 Siege Activations . | . . . . Robots Corrupted . | . . . . Combat Hostiles . | . . . . Parts Fried . | . . . . Impact Corruptions . | . . . . Robots Melted . | . . . . Combat Hostiles . | . . . . Parts Melted 3 | . . 1 2 Heat Transferred 1887 | . . 962 925 Parts Sabotaged . | . . . . Parts Stolen . | . . . . Parts Stripped . | . . . . Power Chain Reactions . | . . . . Alert | -11 -10 -9 -8 ------- Run | Yrd Mat Mat Mat Peak Influence 297 | . 135 297 219 Initial 92 | . . 56 92 Average 129 | . 43 182 108 Maximum Alert Level 1 | . . 1 1 Low Security (%) 84 | 100 100 71 93 Level 1 15 | . . 28 6 Level 2 . | . . . . Level 3 . | . . . . Level 4 . | . . . . Level 5 . | . . . . High Security . | . . . . Max Security . | . . . . Squads Dispatched 3 | . 1 . 2 Investigation 2 | . 1 . 1 Extermination . | . . . . Reinforcement 1 | . . . 1 Assault . | . . . . Garrison . | . . . . Intercept . | . . . . Searches Triggered . | . . . . Construction Impeded 1 | . . . 1 Haulers Reinforced . | . . . . Active Scanning Responses . | . . . . Cargo Convoy Interrupts . | . . . . Stealth | -11 -10 -9 -8 --------- Run | Yrd Mat Mat Mat Distress Signals 2 | . 1 . 1 Communications Jammed . | . . . . Distress Signals . | . . . . Times Spotted 53 | . 7 23 23 Peak Tracking Total 7 | . 3 5 7 Tactical Retreats 5 | . . 3 2 Traps | -11 -10 -9 -8 ------- Run | Yrd Mat Mat Mat Traps Triggered 5 | . 1 2 2 Indirectly . | . . . . Trap Hack Attempts . | . . . . Triggered . | . . . . Disarmed . | . . . . Reprogrammed . | . . . . Reused . | . . . . Traps Extracted . | . . . . Installed . | . . . . Triggered . | . . . . Machines | -11 -10 -9 -8 ---------- Run | Yrd Mat Mat Mat Machines Disabled 2 | . . 1 1 Max in Single Turn 1 | . . 1 1 Machines Repaired . | . . . . Machines Dismantled . | . . . . Machines Sabotaged . | . . . . Overloaded Fab Kills . | . . . . Hacking | -11 -10 -9 -8 --------- Run | Yrd Mat Mat Mat Machines Accessed 11 | . 2 6 3 Terminals 9 | . 2 4 3 Fabricators . | . . . . Repair Stations 1 | . . 1 . Recycling Units . | . . . . Scanalyzers 1 | . . 1 . Garrison Access . | . . . . Total Hacks 21 | . 2 14 5 Successful 12 | . 2 8 2 Failed 9 | . . 6 3 Catastrophic 1 | . . . 1 Database Lockouts . | . . . . Manual 1 | . . 1 . Terminals 14 | . 2 7 5 Fabricators . | . . . . Repair Stations 5 | . . 5 . Recycling Units . | . . . . Scanalyzers 2 | . . 2 . Garrison Access . | . . . . Terminal Hacks 8 | . 2 4 2 Record 1 | . . 1 . Alert Level 2 | . . 2 . Locate Traps 2 | . . 1 1 Maintenance Status 2 | . 1 . 1 Zone Layout 1 | . 1 . . Fabricator Hacks . | . . . . Repair Station Hacks 2 | . . 2 . Scan Component 1 | . . 1 . Repair 1 | . . 1 . Recycling Unit Hacks . | . . . . Scanalyzer 2 | . . 2 . Insert Component 1 | . . 1 . Analyze 1 | . . 1 . Garrison Access Hacks . | . . . . Unauthorized Hacks . | . . . . Terminals . | . . . . Fabricators . | . . . . Repair Stations . | . . . . Recycling Units . | . . . . Scanalyzers . | . . . . Garrison Access . | . . . . Data Cores Recovered . | . . . . Used . | . . . . Hacking Detections 6 | . . 4 2 Full Trace Events 1 | . . . 1 Feedback Events . | . . . . Feedback Blocked . | . . . . Robot Schematics Acquired . | . . . . Robots Built . | . . . . Authchips . | . . . . Time . | . . . . Total Robot Build Rating . | . . . . Part Schematics Acquired 1 | . . 1 . Parts Built . | . . . . Authchips . | . . . . Time . | . . . . Total Part Build Rating . | . . . . Parts Repaired 1 | . . 1 . Time 26 | . . 26 . Parts Recycled . | . . . . Recycled Matter . | . . . . Retrieved Matter . | . . . . Retrieved Components . | . . . . Parts Scanalyzed 1 | . . 1 . Part Schematics Acquired 1 | . . 1 . Parts Damaged . | . . . . Bothacking | -11 -10 -9 -8 ------------ Run | Yrd Mat Mat Mat Used RIF Installer . | . . . . Robots Hacked . | . . . . Non-combat . | . . . . Combat . | . . . . Robot Hacks Applied . | . . . . Relay Couplers Released . | . . . . Fabnet Peak Effective % . | . . . . Robots Rewired . | . . . . Allies Hacked . | . . . . Hacks Repelled . | . . . . Allies | -11 -10 -9 -8 -------- Run | Yrd Mat Mat Mat Total Allies . | . . . . Largest Group . | . . . . Highest-Rated Group . | . . . . Highest-Rated Ally . | . . . . Total Orders . | . . . . Ally Attacks . | . . . . Total Damage . | . . . . Kills . | . . . . Allies Corrupted . | . . . . Allies Melted . | . . . . Intel | -11 -10 -9 -8 ------- Run | Yrd Mat Mat Mat Robot Analysis Total . | . . . . Derelict Logs Recovered . | . . . . Drone Launches . | . . . . Drone Recoveries . | . . . . Exploration | -11 -10 -9 -8 ------------- Run | Yrd Mat Mat Mat Turns Passed 2157 | 97 350 1055 655 Spaces Moved 945 | 63 168 461 253 Core 27 | 26 . . 1 Treads 914 | 37 168 461 248 Legs 4 | . . . 4 Wheels . | . . . . Hover . | . . . . Flight . | . . . . Fastest Speed 50 | 50 160 160 160 Average Speed 158 | 114 160 160 164 Slowest Speed 500 | 160 160 160 500 Overloaded Moves . | . . . . Propulsion Burnouts . | . . . . Robots Hopped . | . . . . Cave-ins Triggered . | . . . . Exploration Rate (%) 31 | 5 39 52 30 Regions Visited 3 Branch Regions . Pre-discovered Areas . | . . . . Known Exits Taken . | . . . . Unknown Exits Taken 3 | 1 1 1 . Scrap Searched . | . . . . Spaces Dug . | . . . . Terrain Destroyed . | . . . . Melee . | . . . . Projectile . | . . . . AOE . | . . . . Terrain Rammed . | . . . . Walls Destroyed . | . . . . Machines Disabled . | . . . . Actions | -11 -10 -9 -8 --------- Run | Yrd Mat Mat Mat Total 1369 | 88 209 674 398 Wait 163 | 11 4 119 29 Move 942 | 62 167 460 253 Hop . | . . . . Pick Up 48 | 9 9 19 11 Fast Attach . | . . . . Attach 35 | 6 2 9 18 Detach . | . . . . Swap 6 | . . 4 2 Drop 14 | . 3 3 8 Fire 161 | . 24 60 77 Melee . | . . . . Ram . | . . . . Kick . | . . . . Crush . | . . . . Escape Stasis . | . . . . Rewire . | . . . . Trap . | . . . . Miscellaneous . | . . . . Route ------- -11/Scrapyard -10/Materials -9/Materials -8/Materials History --------- Turn | Location | Event 16 | -11/Scrapyard | Discovered new exit (range 16) 98 | -11/Scrapyard | Entered Materials 313 | -10/Materials | Build established: Mutant 404 | -10/Materials | Discovered new exit (range 16) 448 | -10/Materials | Entered another Materials area 448 | -9/Materials | Evolved 2 slots: Propulsion x1, Utility x1 1403 | -9/Materials | Repaired Lgt. Treads 1476 | -9/Materials | Discovered new exit (range 13) 1503 | -9/Materials | Entered another Materials area 1503 | -8/Materials | Evolved 2 slots: Utility x2 1813 | -8/Materials | Build established: Scavenger-Mutant 2069 | -8/Materials | Core integrity fell below 50% 2109 | -8/Materials | Lost 14 parts (2p4n5u3w) 2109 | -8/Materials | Core integrity fell below 20% 2145 | -8/Materials | System corruption reached 10% 2158 | -8/Materials | Destroyed by B-36 Bruiser with Hammer Last Messages --------------- Critical hit (Smash). Adv. Beam Cannon destroyed. System corrupted by crushing effect (+5). U-05 Engineer lays Concrete. Sml. Storage Unit destroyed. U-05 Engineer lays Concrete. U-05 Engineer destroyed. K-01 Serf collects debris. Acquired 17 matter. U-05 Engineer lays Concrete. Knocked back. M-13 Machinist repairs Lgt. Armor Plating. U-05 Engineer lays Concrete. R-06 Scavenger collects Wheel. K-01 Serf collects debris. U-05 Engineer lays Concrete. K-01 Serf collects debris. U-05 Engineer lays Concrete. R-06 Scavenger collects Lgt. Ion Engine. U-05 Engineer lays Concrete. Map ----- +----------------------------------------------------+ | + ######## ==##?????????????#?#?# #??????#""" | | # *!#???????#???#??##??# #???#??# | | # !!#?#??????? ????? ?## ##????## =* | | # !!#???????#??????? # ##########+ | | ########## #####????#?#????????? # | | ?????????# #?????????????????????+ | | ?????????# #????????????? ???????# | | ?????????# #????????#????????????? ! ##########+ | | ?????????# #???????#???#??????????# ##?#???# | | ?????????# #???#??????????????????# T#?????# | | ?????????# #???????#???#???????? ?# #?#???## | | ?????????? ??????#???#?????######## #??????# !! | | ?????????? ??#??????#?????## ######## !! | | ?????????? ?## ""?????#??## + ! | | ??????????T??+ """????#??## ############ | | ?????????? ?# """?????##?# #####/#####???????? | | ?????????#???# ##???#?# # != [ #??????#? | | ??????????????? ######## # = #???????? | | ????????????#####+########## # """ #???????? | | ????????#????# * # """ """ ##???##?? | | ?????????????# [=% # """ """ #???????? | | ?????????????# [=|%%= # ##?#????# | | ????????????## #####/####### #????? ?? | | ?????????????# ?#*!%%r = #??# #???????? | | ?????????? ???# k*%g = ##?###########???????? | | ????????? ????#==m*%@%=##????#??????????????? | | ????????? ??????#%=k b** #???#????#????????? ?? | | ????????? ???????? #*u!!!! #????##????????#?????? | | ???????????????????# #????????????????????? | | ???????????????????# #????????????#???????? | | ???????????????????# u #?????#??#???????????? | | ???????????????????# #????????????????????? | | ????????????????? ?###########???????????????????? | | ?????????????????????????????????????????????????? | | ??????????????? ?????#???????????????????????????? | | ??????????????? ???? ???????#???????????????????? | | ?????????????????? ???????? ?#??????????????????? | | ?????????????????????????????????????????????????? | | ???????????????????#?????????????????????????????? | | ?????????????????????????????????????????????????? | | ?????????????????????????????????????????????????? | | ?????????????????????????????????????????????????? | | ?????????????????????????????????????????????????? | | ?????????????????????????????????????????????????? | | ?????????????????????????????????????????????????? | | ?????????????????????????????????????????????????? | | ?????????????????????????????????????????????????? | | ?????????????????????????????????????????????????? | | ?????????????????????????????????????????????????? | | ?????????????????????????????????????????????????? | +----------------------------------------------------+ Best States ------------- Heat Dissipation 31 Energy Generation 15 Energy Capacity 275 Matter Stores 350 Matter Capacity 350 Sight Range 16 Robot Scan Range 14 Terrain Scan Range 16 Terrain Scan Density 10 Armor Coverage 225 Evasion (%) 50 Core Analysis 6 Recoil Reduction 3 Item Schematics ----------------- Lgt. Ion Engine | -9/Materials | Scanalyzed Robot Schematics ------------------ None Fabricated ------------ Nothing Alien Tech Used ----------------- None Achievements -------------- None Challenges ------------ None Game ------ Seed SeismicAntimatterRail Manual? 0 Play Time 00:20:34 Cumulative 4.5 hours Start 2024.04.02 @ 16:09:35 End 2024.04.02 @ 16:28:59 Sessions 1 Manual Loads 0 Difficulty Rogue Special Mode None Game No. 9 Rogue 9 Adventurer 0 Explorer 0 Win Type - Total 0 Types 0/0/0/0/0/0/0/0/0 Lore% 4 Gallery% 12 Achievement% 10 Wizard Run 0 Options --------- Layout 1 ASCII 0 Keyboard 0 Movement Mouse Keybinds 0 Fullscreen 1 Font 24/Smallcaps Map View 50x35 Zoom Use 0% Tactical HUD 0 Map Filters NONE Filters NONE Steam 1 RUN: 624c8872-b3d2-4a9a-9608-5c1ce8ac11ba